[Event "69th RUS-ch Women Higher League 2019"]
[Site "Yaroslavl"]
[Date "2019.06.27"]
[Round "1.1"]
[White "Komiagina, Maria"]
[Black "Galliamova, Alisa"]
[Result "0-1"]
[ECO "B90"]
[WhiteElo "2254"]
[BlackElo "2444"]
[Annotator "NA"]
[PlyCount "110"]
[EventDate "2019.06.27"]
[EventType "swiss"]
[EventCountry "RUS"]
[SourceTitle "playchess.com"]
[Source "ChessBase"]
[SourceQuality "1"]
[TimeControl "40/5400+30:1800+30"]

1. e4 {[%emt 0:00:00]} c5 {[%emt 0:00:00]} 2. Nf3 {[%emt 0:00:00]} d6 {[%emt 0:00:00]} 3. d4 {[%emt 0:00:49]} cxd4 {[%emt 0:00:00]} 4. Nxd4 {[%emt 0:00:03]} Nf6 {[%emt 0:00:00]} 5. Nc3 {[%emt 0:00:04]} a6 {[%emt 0:00:00]} 6. Bc4 {[%emt 0:00:55]} e6 {[%emt 0:00:40]} 7. Bb3 {[%emt 0:00:07]} Nbd7 {[%emt 0:00:17]} 8. f4 {[%emt 0:02:58]} Nc5 {[%emt 0:00:18]} 9. f5 {[%emt 0:11:55]} Be7 {[%emt 0:04:23]} 10. O-O {[%emt 0:02:58]} O-O {[%emt 0:04:46]} 11. fxe6 {[%emt 0:00:49]} fxe6 {[%emt 0:00:48]} 12. Nf5 {[%emt 0:00:33]} Nxb3 {[%emt 0:08:08]} 13. Nxe7+ {[%emt 0:00:12]} Qxe7 {[%emt 0:00:06]} 14. axb3 {[%emt 0:00:19]} h6 {[%emt 0:11:45]} 15. Qd3 {[%emt 0:06:00]} Bd7 {[%emt 0:07:38]} 16. Be3 {[%emt 0:05:52]} Bc6 {[%emt 0:05:06]} 17. Rad1 {[%emt 0:02:20]} Rad8 {[%emt 0:04:44]} 18. Bb6 {[%emt 0:00:21]} Rd7 {[%emt 0:00:21]} 19. Qe2 {[%emt 0:00:52]} Qe8 {[%emt 0:10:24]} 20. Rd3 {[%emt 0:00:46]} Qg6 {[%emt 0:15:19]} 21. Rg3 {[%emt 0:00:21]} Qe8 {[%emt 0:02:42]} 22. Rd3 {[%emt 0:00:22]} e5 {[%emt 0:05:21]} 23. Rdf3 {[%emt 0:04:24]} Rdf7 {[%emt 0:02:56]} 24. h3 {[%emt 0:06:31]} Bb5 {[%emt 0:02:19]} 25. Nxb5 {[%emt 0:00:33]} axb5 {[%emt 0:02:24]} 26. Rc3 {[%emt 0:01:38]} d5 {[%emt 0:02:30]} 27. Rc7 {[%emt 0:04:17]} Rxc7 {[%emt 0:06:11]} 28. Bxc7 {[%emt 0:00:06]} Nxe4 {[%emt 0:01:12]} 29. Rxf8+ {[%emt 0:00:59]} Kxf8 {[%emt 0:00:07]} 30. c4 {[%emt 0:02:25]} bxc4 {[%emt 0:01:13]} 31. bxc4 {[%emt 0:00:06]} Qc6 {[%emt 0:01:37]} 32. Bxe5 {[%emt 0:00:15]} dxc4 {[%emt 0:00:35]} 33. Bd4 {[%emt 0:01:54]} Qd5 {[%emt 0:00:54]} 34. Qe3 {[%emt 0:01:47]} Kg8 {[%emt 0:00:19]} 35. Bb6 {[%emt 0:03:11]} Qd1+ {[%emt 0:00:08]} 36. Kh2 {[%emt 0:00:14]} Qd6+ {[%emt 0:00:09]} 37. Kg1 {[%emt 0:00:40]} Qd1+ {[%emt 0:02:20]} 38. Kh2 {[%emt 0:00:06]} Qd3 {[%emt 0:00:25]} 39. Qf4 {[%emt 0:02:16]} Qd6 {[%emt 0:00:30]} 40. Qxd6 {[%emt 0:00:00]} Nxd6 {[%emt 0:00:00]} 41. Kg3 {[%emt 0:00:24]} Kf7 {[%emt 0:01:57]} 42. Kf4 {[%emt 0:00:07]} Ke6 {[%emt 0:00:36]} 43. h4 {[%emt 0:00:51]} g6 {[%emt 0:03:54]} 44. g4 {[%emt 0:00:52]} Kd5 {[%emt 0:01:46]} 45. Bd8 {[%emt 0:03:54]} b5 {[%emt 0:02:10]} 46. Ba5 {[%emt 0:01:56]} Nb7 {[%emt 0:19:43]} 47. Bc3 {[%emt 0:01:06]} Nc5 {[%emt 0:00:04]} 48. Ke3 {[%emt 0:04:44]} h5 {[%emt 0:02:05]} 49. gxh5 {[%emt 0:01:10]} gxh5 {[%emt 0:00:03]} 50. Kf4 {[%emt 0:03:31]} b4 {[%emt 0:00:07]} 51. Bf6 {[%emt 0:00:10]} Ne6+ {[%emt 0:02:18]} 52. Ke3 {[%emt 0:01:01]} b3 {[%emt 0:00:54]} 53. Bh8 {[%emt 0:01:29]} Nc5 {[%emt 0:00:13]} 54. Kf4 {[%emt 0:02:16]} Ne4 {[%emt 0:00:35]} 55. Ke3 {[%emt 0:03:16]} c3 {[%emt 0:00:42] Kd4+ Ke5+} 0-1

[Event "69th RUS-ch Women Higher League 2019"]
[Site "Yaroslavl"]
[Date "2019.06.27"]
[Round "1.2"]
[White "Bodnaruk, Anastasia"]
[Black "Chernyak, Viktoria"]
[Result "1-0"]
[ECO "B12"]
[WhiteElo "2440"]
[BlackElo "2253"]
[Annotator "NA"]
[PlyCount "83"]
[EventDate "2019.06.27"]
[EventType "swiss"]
[EventCountry "RUS"]
[SourceTitle "playchess.com"]
[Source "ChessBase"]
[SourceQuality "1"]
[TimeControl "40/5400+30:1800+30"]

1. e4 {[%emt 0:00:00]} c6 {[%emt 0:00:00]} 2. d4 {[%emt 0:00:00]} d5 {[%emt 0:00:00]} 3. e5 {[%emt 0:00:00]} Bf5 {[%emt 0:00:00]} 4. Nf3 {[%emt 0:00:16]} e6 {[%emt 0:00:03]} 5. Be2 {[%emt 0:00:07]} Nd7 {[%emt 0:02:16]} 6. O-O {[%emt 0:00:17]} h6 {[%emt 0:00:38]} 7. c3 {[%emt 0:04:34]} a5 {[%emt 0:02:05]} 8. a4 {[%emt 0:03:27]} Ne7 {[%emt 0:01:16]} 9. Ne1 {[%emt 0:10:29]} Bh7 {[%emt 0:08:19]} 10. Nd3 {[%emt 0:07:20]} Nf5 {[%emt 0:08:04]} 11. Nf4 {[%emt 0:02:13]} Be7 {[%emt 0:03:05]} 12. Bd3 {[%emt 0:03:50]} Bg5 {[%emt 0:15:40]} 13. Na3 {[%emt 0:15:56]} Nf8 {[%emt 0:03:54]} 14. Nh5 {[%emt 0:16:56]} Bxc1 {[%emt 0:03:31]} 15. Rxc1 {[%emt 0:01:45]} Rg8 {[%emt 0:03:11]} 16. c4 {[%emt 0:03:53]} Qh4 {[%emt 0:10:30]} 17. Bxf5 {[%emt 0:03:55]} Bxf5 {[%emt 0:00:25]} 18. Ng3 {[%emt 0:00:05]} Bh7 {[%emt 0:04:28]} 19. f4 {[%emt 0:02:13]} Qe7 {[%emt 0:00:43]} 20. f5 {[%emt 0:02:38]} Nd7 {[%emt 0:07:59]} 21. fxe6 {[%emt 0:03:33]} Qxe6 {[%emt 0:06:08]} 22. cxd5 {[%emt 0:01:32]} Qxd5 {[%emt 0:00:13]} 23. Nc4 {[%emt 0:00:20]} O-O-O {[%emt 0:02:51]} 24. Rxf7 {[%emt 0:01:40]} Kb8 {[%emt 0:00:18]} 25. Re7 {[%emt 0:08:43]} c5 {[%emt 0:02:58]} 26. e6 {[%emt 0:02:42]} Nf8 {[%emt 0:02:07]} 27. Nxa5 {[%emt 0:02:48]} Nxe6 {[%emt 0:00:51]} 28. Nxb7 {[%emt 0:01:02]} Rc8 {[%emt 0:04:30]} 29. dxc5 {[%emt 0:01:17]} Nd4 {[%emt 0:00:16]} 30. b4 {[%emt 0:00:50]} Bg6 {[%emt 0:02:20]} 31. Nd6 {[%emt 0:00:22]} Rcd8 {[%emt 0:00:22]} 32. Ne2 {[%emt 0:00:42]} Nf3+ {[%emt 0:02:28]} 33. Kh1 {[%emt 0:00:18]} Qh5 {[%emt 0:02:58]} 34. gxf3 {[%emt 0:00:32]} Qxf3+ {[%emt 0:00:08]} 35. Kg1 {[%emt 0:00:02]} Rgf8 {[%emt 0:00:34]} 36. Ng3 {[%emt 0:00:51]} Qf4 {[%emt 0:01:12]} 37. Kh1 {[%emt 0:00:47]} Qh4 {[%emt 0:01:25]} 38. Qe2 {[%emt 0:00:29]} Bd3 {[%emt 0:00:40]} 39. Rb7+ {[%emt 0:00:19]} Ka8 {[%emt 0:00:03]} 40. Qxd3 {[%emt 0:00:00]} Rxd6 {[%emt 0:00:00]} 41. cxd6 {[%emt 0:00:28]} Kxb7 {[%emt 0:00:33]} 42. Rc7+ {[%emt 0:00:19]} 1-0

[Event "69th RUS-ch Women Higher League 2019"]
[Site "Yaroslavl"]
[Date "2019.06.27"]
[Round "1.3"]
[White "Garifullina, Leya"]
[Black "Shuvalova, Polina"]
[Result "0-1"]
[ECO "B30"]
[WhiteElo "2246"]
[BlackElo "2418"]
[Annotator "NA"]
[PlyCount "111"]
[EventDate "2019.06.27"]
[EventType "swiss"]
[EventCountry "RUS"]
[SourceTitle "playchess.com"]
[Source "ChessBase"]
[SourceQuality "1"]
[TimeControl "40/5400+30:1800+30"]

1. e4 {[%emt 0:00:00]} c5 {[%emt 0:00:00]} 2. Nf3 {[%emt 0:00:00]} Nc6 {[%emt 0:00:00]} 3. Bb5 {[%emt 0:00:00]} d6 {[%emt 0:00:00]} 4. Bxc6+ {[%emt 0:00:58]} bxc6 {[%emt 0:00:00]} 5. O-O {[%emt 0:00:51]} e5 {[%emt 0:02:08]} 6. c3 {[%emt 0:01:02]} Bg4 {[%emt 0:09:50]} 7. h3 {[%emt 0:01:55]} Bxf3 {[%emt 0:03:00]} 8. Qxf3 {[%emt 0:00:35]} g6 {[%emt 0:01:58]} 9. d3 {[%emt 0:04:37]} Bg7 {[%emt 0:00:32]} 10. Na3 {[%emt 0:01:19]} Ne7 {[%emt 0:01:00]} 11. Bg5 {[%emt 0:06:35]} O-O {[%emt 0:01:28]} 12. Bf6 {[%emt 0:01:20]} Rb8 {[%emt 0:04:34]} 13. Nc4 {[%emt 0:04:22]} Qd7 {[%emt 0:00:39]} 14. Rae1 {[%emt 0:05:10]} Qe6 {[%emt 0:09:11]} 15. Bxg7 {[%emt 0:01:25]} Kxg7 {[%emt 0:00:01]} 16. Qg4 {[%emt 0:04:41]} Qxg4 {[%emt 0:10:53]} 17. hxg4 {[%emt 0:00:26]} Nc8 {[%emt 0:14:42]} 18. Re2 {[%emt 0:05:47]} f6 {[%emt 0:02:52]} 19. f4 {[%emt 0:08:19]} exf4 {[%emt 0:01:32]} 20. Rxf4 {[%emt 0:00:06]} Rb7 {[%emt 0:02:15]} 21. Ref2 {[%emt 0:04:45]} h6 {[%emt 0:08:52]} 22. Na5 {[%emt 0:10:10]} Rc7 {[%emt 0:04:10]} 23. Nb3 {[%emt 0:03:03]} Rff7 {[%emt 0:06:51]} 24. R4f3 {[%emt 0:04:46]} Nb6 {[%emt 0:01:21]} 25. d4 {[%emt 0:09:19]} cxd4 {[%emt 0:01:46]} 26. Nxd4 {[%emt 0:00:57]} Rce7 {[%emt 0:00:23]} 27. Nxc6 {[%emt 0:00:25]} Rxe4 {[%emt 0:00:24]} 28. Rf4 {[%emt 0:01:47]} d5 {[%emt 0:03:19]} 29. Nb4 {[%emt 0:05:51]} a5 {[%emt 0:03:09]} 30. Nd3 {[%emt 0:02:06]} Nc4 {[%emt 0:02:05]} 31. Nc5 {[%emt 0:01:57]} Re1+ {[%emt 0:02:10]} 32. Kh2 {[%emt 0:00:14]} g5 {[%emt 0:00:36]} 33. Rd4 {[%emt 0:01:53]} Ne3 {[%emt 0:00:46]} 34. Nd3 {[%emt 0:02:55]} Rd1 {[%emt 0:00:50]} 35. Rf3 {[%emt 0:02:36]} Re7 {[%emt 0:00:50]} 36. Nf2 {[%emt 0:01:40]} Rb1 {[%emt 0:01:08]} 37. Rd3 {[%emt 0:02:51]} Nc4 {[%emt 0:02:35]} 38. Rxd5 {[%emt 0:01:36]} Rxb2 {[%emt 0:00:12]} 39. Rdf5 {[%emt 0:00:25]} Ne5 {[%emt 0:00:27]} 40. Re3 {[%emt 0:00:00]} Kg6 {[%emt 0:00:00]} 41. Kg3 {[%emt 0:01:50]} Rxa2 {[%emt 0:15:08]} 42. Ne4 {[%emt 0:10:20]} Nxg4 {[%emt 0:01:18]} 43. Kxg4 {[%emt 0:00:15]} Rxe4+ {[%emt 0:00:17]} 44. Rxe4 {[%emt 0:00:47]} Rxg2+ {[%emt 0:02:12]} 45. Kf3 {[%emt 0:00:04]} Kxf5 {[%emt 0:00:04]} 46. Ra4 {[%emt 0:00:03]} Rc2 {[%emt 0:00:22]} 47. Rxa5+ {[%emt 0:00:04]} Kg6 {[%emt 0:00:03]} 48. Rc5 {[%emt 0:00:12]} h5 {[%emt 0:00:05]} 49. Rc8 {[%emt 0:00:25]} h4 {[%emt 0:00:07]} 50. Kg4 {[%emt 0:00:48]} Rg2+ {[%emt 0:01:03]} 51. Kh3 {[%emt 0:00:06]} Rg3+ {[%emt 0:00:25]} 52. Kh2 {[%emt 0:00:04]} g4 {[%emt 0:00:06]} 53. c4 {[%emt 0:00:22]} Rc3 {[%emt 0:00:07]} 54. c5 {[%emt 0:00:05]} Rc2+ {[%emt 0:00:04]} 55. Kg1 {[%emt 0:00:05]} Kf5 {[%emt 0:00:46]} 56. Rh8 {[%emt 0:01:19]} 0-1

[Event "69th RUS-ch Women Higher League 2019"]
[Site "Yaroslavl"]
[Date "2019.06.27"]
[Round "1.4"]
[White "Kovalevskaya, Ekaterina"]
[Black "Schepetkova, Margarita"]
[Result "1/2-1/2"]
[ECO "A07"]
[WhiteElo "2413"]
[BlackElo "2241"]
[Annotator "NA"]
[PlyCount "107"]
[EventDate "2019.06.27"]
[EventType "swiss"]
[EventCountry "RUS"]
[SourceTitle "playchess.com"]
[Source "ChessBase"]
[SourceQuality "1"]
[TimeControl "40/5400+30:1800+30"]

1. Nf3 {[%emt 0:00:00]} d5 {[%emt 0:00:00]} 2. g3 {[%emt 0:00:00]} c6 {[%emt 0:00:00]} 3. Bg2 {[%emt 0:00:00]} Nf6 {[%emt 0:00:14]} 4. O-O {[%emt 0:00:00]} Bg4 {[%emt 0:00:47]} 5. d3 {[%emt 0:00:11]} Nbd7 {[%emt 0:01:08]} 6. Nbd2 {[%emt 0:00:34]} e5 {[%emt 0:01:10]} 7. h3 {[%emt 0:02:27]} Bh5 {[%emt 0:04:43]} 8. e4 {[%emt 0:00:10]} dxe4 {[%emt 0:00:54]} 9. dxe4 {[%emt 0:00:06]} Bc5 {[%emt 0:01:19]} 10. Qe1 {[%emt 0:02:35]} O-O {[%emt 0:00:30]} 11. Nh4 {[%emt 0:02:07]} a5 {[%emt 0:09:41]} 12. a4 {[%emt 0:03:22]} b5 {[%emt 0:04:01]} 13. Nb3 {[%emt 0:10:00]} Bb4 {[%emt 0:04:29]} 14. Bd2 {[%emt 0:06:43]} bxa4 {[%emt 0:08:40]} 15. Rxa4 {[%emt 0:00:37]} Nb6 {[%emt 0:03:05]} 16. Bxb4 {[%emt 0:08:27]} Nxa4 {[%emt 0:01:07]} 17. Bxf8 {[%emt 0:02:17]} Qxf8 {[%emt 0:01:41]} 18. Nxa5 {[%emt 0:05:20]} Qc5 {[%emt 0:02:10]} 19. b4 {[%emt 0:04:38]} Qxc2 {[%emt 0:04:27]} 20. Qc1 {[%emt 0:09:09]} Qxc1 {[%emt 0:02:53]} 21. Rxc1 {[%emt 0:00:03]} c5 {[%emt 0:01:11]} 22. Ra1 {[%emt 0:08:07]} Nc3 {[%emt 0:08:07]} 23. bxc5 {[%emt 0:03:53]} Ne2+ {[%emt 0:00:31]} 24. Kh2 {[%emt 0:09:24]} Nd4 {[%emt 0:00:48]} 25. f4 {[%emt 0:02:57]} g5 {[%emt 0:19:44]} 26. fxe5 {[%emt 0:06:49]} Nd7 {[%emt 0:03:58]} 27. Nf5 {[%emt 0:00:32]} Nc6 {[%emt 0:01:29]} 28. Nxc6 {[%emt 0:02:44]} Rxa1 {[%emt 0:00:04]} 29. Nce7+ {[%emt 0:00:11]} Kf8 {[%emt 0:00:45]} 30. c6 {[%emt 0:00:14]} Nb6 {[%emt 0:00:22]} 31. Nd5 {[%emt 0:01:18]} Na8 {[%emt 0:00:11]} 32. Nd4 {[%emt 0:04:11]} Rd1 {[%emt 0:02:51]} 33. Nb5 {[%emt 0:00:40]} Rc1 {[%emt 0:01:37]} 34. g4 {[%emt 0:03:36]} Bg6 {[%emt 0:00:03]} 35. c7 {[%emt 0:00:04]} Ke8 {[%emt 0:04:41]} 36. Nd6+ {[%emt 0:01:30]} Kd7 {[%emt 0:00:13]} 37. c8=Q+ {[%emt 0:00:07]} Rxc8 {[%emt 0:00:04]} 38. Nxc8 {[%emt 0:00:06]} Kxc8 {[%emt 0:00:06]} 39. Kg3 {[%emt 0:01:22]} Nc7 {[%emt 0:00:49]} 40. h4 {[%emt 0:00:00]} gxh4+ {[%emt 0:00:00]} 41. Kxh4 {[%emt 0:01:43]} Ne6 {[%emt 0:00:29]} 42. g5 {[%emt 0:12:28]} Kd8 {[%emt 0:07:01]} 43. Nf6 {[%emt 0:04:45]} Nc5 {[%emt 0:03:11]} 44. Bh3 {[%emt 0:07:32]} Bxe4 {[%emt 0:04:45]} 45. Nxe4 {[%emt 0:01:12]} Nxe4 {[%emt 0:00:03]} 46. Bf5 {[%emt 0:00:40]} Nc5 {[%emt 0:02:51]} 47. Kh5 {[%emt 0:04:30]} Nd7 {[%emt 0:01:46]} 48. e6 {[%emt 0:00:41]} fxe6 {[%emt 0:00:20]} 49. Bxe6 {[%emt 0:00:05]} Ne5 {[%emt 0:00:19]} 50. Bd5 {[%emt 0:00:25]} Ke7 {[%emt 0:00:42]} 51. Kh6 {[%emt 0:00:08]} Kd6 {[%emt 0:00:09]} 52. Bg8 {[%emt 0:00:11]} Nf3 {[%emt 0:00:06]} 53. Bxh7 {[%emt 0:00:05]} Nxg5 {[%emt 0:00:04]} 54. Kxg5 {[%emt 0:00:05]} 1/2-1/2

[Event "69th RUS-ch Women Higher League 2019"]
[Site "Yaroslavl"]
[Date "2019.06.27"]
[Round "1.5"]
[White "Shafigullina, Zarina"]
[Black "Bivol, Alina"]
[Result "1-0"]
[ECO "E62"]
[WhiteElo "2240"]
[BlackElo "2391"]
[Annotator "NA"]
[PlyCount "95"]
[EventDate "2019.06.27"]
[EventType "swiss"]
[EventCountry "RUS"]
[SourceTitle "playchess.com"]
[Source "ChessBase"]
[SourceQuality "1"]
[TimeControl "40/5400+30:1800+30"]

1. d4 {[%emt 0:00:00]} Nf6 {[%emt 0:00:00]} 2. Nf3 {[%emt 0:00:00]} g6 {[%emt 0:00:00]} 3. g3 {[%emt 0:00:00]} Bg7 {[%emt 0:00:00]} 4. Bg2 {[%emt 0:00:00]} O-O $11 {[%emt 0:00:06]} 5. c4 {[%emt 0:00:14]} d6 {[%emt 0:00:11]} 6. Nc3 {[%emt 0:00:20]} Nc6 {[%emt 0:00:04]} 7. O-O {[%emt 0:00:11]} Rb8 {[%emt 0:00:04]} 8. h3 {[%emt 0:00:15]} Bf5 {[%emt 0:00:45]} 9. d5 {[%emt 0:03:16]} Na5 {[%emt 0:01:47]} 10. Nd4 {[%emt 0:02:09]} Bd7 {[%emt 0:02:00]} 11. Qd3 {[%emt 0:00:45]} c5 {[%emt 0:01:09]} 12. Nc2 {[%emt 0:00:26]} a6 {[%emt 0:01:05]} 13. Rb1 {[%emt 0:05:00]} b5 {[%emt 0:06:08]} 14. b3 {[%emt 0:03:10]} Qc7 {[%emt 0:05:01]} 15. Bf4 {[%emt 0:06:49]} Rfd8 {[%emt 0:07:20]} 16. g4 {[%emt 0:01:23]} Be8 {[%emt 0:04:43]} 17. cxb5 {[%emt 0:20:08]} axb5 {[%emt 0:01:46]} 18. b4 {[%emt 0:00:36]} Nc4 {[%emt 0:10:37]} 19. bxc5 {[%emt 0:02:59]} Qxc5 {[%emt 0:00:12]} 20. Nb4 {[%emt 0:00:06]} Rbc8 {[%emt 0:10:27]} 21. Rfc1 {[%emt 0:02:28]} e5 {[%emt 0:03:51]} 22. Bg5 {[%emt 0:02:52]} Qa7 {[%emt 0:09:12]} 23. Nc6 {[%emt 0:02:36]} Bxc6 {[%emt 0:00:30]} 24. dxc6 {[%emt 0:00:05]} Na3 {[%emt 0:07:10]} 25. Nxb5 {[%emt 0:07:07]} Nxb5 {[%emt 0:00:02]} 26. Qxb5 {[%emt 0:00:16]} e4 {[%emt 0:04:54]} 27. a4 {[%emt 0:06:11]} Re8 {[%emt 0:01:30]} 28. Be3 {[%emt 0:07:37]} Qa8 {[%emt 0:00:07]} 29. Bb6 {[%emt 0:06:11]} Re5 {[%emt 0:00:57]} 30. Qc4 {[%emt 0:00:31]} d5 {[%emt 0:05:07]} 31. Qb5 {[%emt 0:00:50]} Re6 {[%emt 0:02:48]} 32. c7 {[%emt 0:05:49]} Ne8 {[%emt 0:00:15]} 33. Qa5 {[%emt 0:05:34]} Qxa5 {[%emt 0:00:50]} 34. Bxa5 {[%emt 0:00:01]} Be5 {[%emt 0:01:33]} 35. Rb5 {[%emt 0:02:44]} Nxc7 {[%emt 0:08:48]} 36. Rbc5 {[%emt 0:00:50]} Re7 {[%emt 0:00:06]} 37. e3 {[%emt 0:01:05]} f5 {[%emt 0:01:11]} 38. Bf1 {[%emt 0:02:18]} Kf7 {[%emt 0:02:20]} 39. Bb6 {[%emt 0:02:06]} fxg4 {[%emt 0:02:55]} 40. hxg4 {[%emt 0:00:00]} h5 {[%emt 0:00:00]} 41. g5 {[%emt 0:04:30]} Na8 {[%emt 0:09:16]} 42. Rxc8 {[%emt 0:00:51]} Nxb6 {[%emt 0:00:01]} 43. R8c5 {[%emt 0:02:07]} d4 {[%emt 0:04:04]} 44. exd4 {[%emt 0:06:11]} Bxd4 {[%emt 0:00:08]} 45. Rc7 {[%emt 0:00:00]} e3 {[%emt 0:00:18]} 46. a5 {[%emt 0:03:07]} exf2+ {[%emt 0:03:03]} 47. Kg2 {[%emt 0:00:17]} Nd7 {[%emt 0:07:08]} 48. Rd1 {[%emt 0:00:53]} 1-0

[Event "69th RUS-ch Women Higher League 2019"]
[Site "Yaroslavl"]
[Date "2019.06.27"]
[Round "1.6"]
[White "Gritsayeva, Oksana"]
[Black "Khokhlova, Daria"]
[Result "1/2-1/2"]
[ECO "B22"]
[WhiteElo "2381"]
[BlackElo "2234"]
[Annotator "NA"]
[PlyCount "180"]
[EventDate "2019.06.27"]
[EventType "swiss"]
[EventCountry "RUS"]
[SourceTitle "playchess.com"]
[Source "ChessBase"]
[SourceQuality "1"]
[TimeControl "40/5400+30:1800+30"]

1. e4 {[%emt 0:00:00]} c5 {[%emt 0:00:00]} 2. c3 {[%emt 0:00:00]} g6 {[%emt 0:00:00]} 3. d4 {[%emt 0:00:00]} cxd4 {[%emt 0:00:00]} 4. cxd4 {[%emt 0:00:00]} d5 $11 {[%emt 0:00:00]} 5. e5 {[%emt 0:00:34]} Bg7 {[%emt 0:01:23]} 6. Nc3 {[%emt 0:00:06]} Nc6 {[%emt 0:00:59]} 7. Bb5 {[%emt 0:00:21]} f6 {[%emt 0:02:36]} 8. Nf3 {[%emt 0:08:36]} Bg4 {[%emt 0:04:31]} 9. O-O {[%emt 0:04:59]} fxe5 {[%emt 0:01:45]} 10. dxe5 {[%emt 0:03:07]} e6 {[%emt 0:02:21]} 11. h3 {[%emt 0:11:05]} Bxf3 {[%emt 0:00:20]} 12. Qxf3 {[%emt 0:00:06]} Nge7 {[%emt 0:01:45]} 13. Bg5 {[%emt 0:07:03]} Qc7 {[%emt 0:04:42]} 14. Rfe1 {[%emt 0:01:06]} Nf5 {[%emt 0:13:32]} 15. Rac1 {[%emt 0:06:33]} O-O 16. Bxc6 {[%emt 0:06:39]} bxc6 {[%emt 0:09:10]} 17. Qd3 {[%emt 0:06:16]} Qb6 {[%emt 0:07:08]} 18. Na4 {[%emt 0:04:06]} Qd4 19. Qxd4 {[%emt 0:02:47]} Nxd4 {[%emt 0:09:01]} 20. Be7 {[%emt 0:04:12]} Rf5 {[%emt 0:04:03]} 21. Bd6 Bf8 {[%emt 0:06:14]} 22. Nc5 {[%emt 0:04:15]} Rd8 23. Bxf8 {[%emt 0:04:05]} Rdxf8 {[%emt 0:07:02]} 24. Rcd1 {[%emt 0:08:24]} Nb5 {[%emt 0:03:47]} 25. Nxe6 {[%emt 0:01:25]} Re8 {[%emt 0:00:52]} 26. g4 {[%emt 0:03:16]} Rf7 {[%emt 0:00:32]} 27. Nc5 {[%emt 0:01:37]} Rfe7 {[%emt 0:02:02]} 28. Nd3 {[%emt 0:01:43]} g5 {[%emt 0:02:36]} 29. Kg2 {[%emt 0:00:57]} a5 {[%emt 0:02:10]} 30. h4 {[%emt 0:01:26]} h6 {[%emt 0:00:57]} 31. hxg5 {[%emt 0:00:33]} hxg5 {[%emt 0:00:01]} 32. Re3 {[%emt 0:04:02]} Nd4 {[%emt 0:03:03]} 33. f4 {[%emt 0:01:59]} gxf4 {[%emt 0:00:27]} 34. Nxf4 {[%emt 0:00:09]} c5 {[%emt 0:03:01]} 35. Nxd5 {[%emt 0:01:24]} Rxe5 {[%emt 0:00:04]} 36. Rxe5 {[%emt 0:01:13]} Rxe5 {[%emt 0:00:02]} 37. Nc3 {[%emt 0:00:41]} Re3 {[%emt 0:03:44]} 38. Kf2 {[%emt 0:00:05]} Rf3+ {[%emt 0:00:30]} 39. Kg2 {[%emt 0:00:04]} Re3 {[%emt 0:01:18]} 40. Na4 {[%emt 0:00:00]} Re4 {[%emt 0:00:00]} 41. Kh3 {[%emt 0:05:52]} Ne6 {[%emt 0:07:20]} 42. Nc3 {[%emt 0:00:18]} Rb4 {[%emt 0:01:39]} 43. b3 {[%emt 0:02:12]} Ng5+ {[%emt 0:09:19]} 44. Kh4 {[%emt 0:03:11]} Nf3+ {[%emt 0:04:13]} 45. Kh5 {[%emt 0:00:23]} Rd4 {[%emt 0:02:12]} 46. Rf1 {[%emt 0:02:39]} Nd2 {[%emt 0:02:29]} 47. Rf5 {[%emt 0:00:50]} c4 {[%emt 0:01:20]} 48. Rxa5 {[%emt 0:03:47]} cxb3 {[%emt 0:00:09]} 49. axb3 {[%emt 0:00:03]} Nxb3 {[%emt 0:00:25]} 50. Rb5 {[%emt 0:00:15]} Nd2 {[%emt 0:00:35]} 51. g5 {[%emt 0:00:57]} Rd6 {[%emt 0:02:56]} 52. Rb7 {[%emt 0:01:31]} Kf8 {[%emt 0:02:23]} 53. Rc7 {[%emt 0:00:39]} Kg8 {[%emt 0:00:51]} 54. Ne2 {[%emt 0:03:23]} Nf3 {[%emt 0:02:17]} 55. Nf4 {[%emt 0:00:48]} Nxg5 {[%emt 0:01:14]} 56. Kxg5 {[%emt 0:00:05]} Kf8 {[%emt 0:00:23]} 57. Kf5 {[%emt 0:00:35]} Ke8 {[%emt 0:00:29]} 58. Ke5 {[%emt 0:00:57]} Rd7 {[%emt 0:00:21]} 59. Rc1 {[%emt 0:01:17]} Kf7 {[%emt 0:00:37]} 60. Rh1 {[%emt 0:01:12]} Re7+ {[%emt 0:01:01]} 61. Kf5 {[%emt 0:00:10]} Ke8 {[%emt 0:00:54]} 62. Nd5 {[%emt 0:01:03]} Re2 {[%emt 0:00:47]} 63. Rh7 {[%emt 0:00:13]} Rf2+ {[%emt 0:00:14]} 64. Ke6 {[%emt 0:01:11]} Re2+ {[%emt 0:00:07]} 65. Kd6 {[%emt 0:00:04]} Kf8 {[%emt 0:00:16]} 66. Nf4 {[%emt 0:00:53]} Rd2+ {[%emt 0:00:51]} 67. Ke5 {[%emt 0:00:05]} Rd1 {[%emt 0:00:39]} 68. Ra7 {[%emt 0:03:30]} Re1+ {[%emt 0:00:16]} 69. Kf6 {[%emt 0:00:12]} Ke8 {[%emt 0:00:09]} 70. Ng6 {[%emt 0:00:32]} Rf1+ {[%emt 0:00:32]} 71. Ke6 {[%emt 0:00:04]} Re1+ {[%emt 0:00:02]} 72. Ne5 {[%emt 0:00:05]} Kd8 {[%emt 0:00:19]} 73. Rh7 {[%emt 0:01:10]} Re2 {[%emt 0:00:25]} 74. Kd6 {[%emt 0:01:49]} Rd2+ {[%emt 0:00:04]} 75. Kc5 {[%emt 0:05:11]} Rc2+ {[%emt 0:00:05]} 76. Kd4 {[%emt 0:00:05]} Rd2+ {[%emt 0:00:17]} 77. Ke3 {[%emt 0:00:04]} Rd1 {[%emt 0:00:28]} 78. Nc6+ {[%emt 0:00:17]} Ke8 {[%emt 0:00:09]} 79. Ke4 {[%emt 0:00:26]} Re1+ {[%emt 0:00:37]} 80. Kd5 {[%emt 0:00:48]} Rd1+ {[%emt 0:00:08]} 81. Ke6 {[%emt 0:02:30]} Re1+ {[%emt 0:00:08]} 82. Ne5 {[%emt 0:00:03]} Kd8 {[%emt 0:00:07]} 83. Rd7+ {[%emt 0:00:44]} Kc8 {[%emt 0:00:07]} 84. Ra7 {[%emt 0:00:58]} Kd8 {[%emt 0:00:10]} 85. Kd5 {[%emt 0:01:00]} Rd1+ {[%emt 0:00:04]} 86. Kc5 {[%emt 0:00:03]} Rc1+ {[%emt 0:00:08]} 87. Nc4 {[%emt 0:00:04]} Ke8 {[%emt 0:00:08]} 88. Kd5 {[%emt 0:00:40]} Rd1+ {[%emt 0:00:09]} 89. Ke6 {[%emt 0:00:27]} Re1+ {[%emt 0:00:04]} 90. Ne5 {[%emt 0:00:02]} Kd8 {[%emt 0:00:06]} 1/2-1/2